bitfinex/quotes_SOLUSD_20260115
["timestamp","ask_amount","ask_price","bid_price","bid_amount"]
[1768510960368,1.84612896,141.58,141.56,4.18880731]
[1768510960558,8.9095406,141.58,141.56,4.18880731]
[1768510961077,1.84612896,141.59,141.56,4.18880731]
[1768510962280,8.90927347,141.58,141.56,4.18880731]
[1768510963064,1.84612896,141.58,141.56,4.18880731]
[1768510963274,7.06287972,141.59,141.57,4.18880731]
[1768510963780,8.90900868,141.59,141.57,4.18880731]
[1768510963984,8.90900868,141.59,141.56,4.18880731]
[1768510964866,8.90900868,141.59,141.55,1.99883871]
[1768510965066,8.90900868,141.59,141.56,4.18880731]
[1768510966282,7.06287972,141.59,141.57,4.18880731]
[1768510966489,8.90900868,141.59,141.57,4.18880731]
[1768510968194,8.90900868,141.59,141.56,6.18764602]
[1768510969598,17.6558238,141.6,141.57,6.18764602]
[1768510969599,8.90848778,141.6,141.57,6.18764602]
[1768510969894,1.84612896,141.58,141.53,1.99883871]
[1768510970083,7.06235882,141.6,141.54,1.99883871]
[1768510970084,28.90653336,141.6,141.54,1.99883871]
[1768510970284,28.90653336,141.6,141.54,6.18764602]
[1768510970285,4.18880731,141.59,141.54,6.18764602]
[1768510970484,11.25195182,141.58,141.53,6.18764602]
[1768510971083,4.18880731,141.57,141.52,6.20443338]
[1768510971782,7.06314451,141.58,141.54,2.01562607]
[1768510971982,7.06314451,141.58,141.56,4.18880731]
[1768510972388,7.06369406,141.57,141.54,2.01562607]
[1768510972590,7.06369406,141.57,141.54,6.20443338]
[1768510972881,7.06336865,141.58,141.55,4.18880731]
[1768510975091,7.06336865,141.58,141.55,6.20443338]
[1768510975500,1.00524107,141.59,141.56,6.20443338]
[1768510975501,7.06264566,141.59,141.56,6.20443338]
[1768510976089,8.07086943,141.59,141.56,6.20443338]
[1768510976409,1.00822377,141.59,141.56,6.20443338]
[1768510976606,1.00951433,141.61,141.58,6.20443338]
[1768510976809,1.00951433,141.61,141.59,4.18880731]
[1768510977125,1.00951433,141.61,141.58,6.20443338]
[1768510977584,8.0711775,141.61,141.58,6.20443338]
[1768510979909,7.06166317,141.61,141.58,6.20443338]
[1768510980415,8.17447507,141.62,141.59,4.18880731]
[1768510981526,8.17447507,141.62,141.61,4.18880731]
[1768510981527,0.1,141.62,141.61,4.18880731]
[1768510981814,7.06032474,141.64,141.62,1.98562609]
[1768510982020,7.1597886,141.65,141.63,4.15880732]
[1768510982819,8.23674087,141.65,141.62,4.18880731]
[1768510984426,7.1597886,141.65,141.62,6.20443338]
[1768510984717,0.1,141.65,141.63,4.18880731]
[1768510984889,0.1,141.65,141.63,4.15880732]
[1768510988113,7.1597811,141.65,141.63,4.15880732]
[1768510988513,0.1,141.65,141.63,6.17443339]
[1768510988821,0.1,141.65,141.63,6.20443338]
[1768510988989,0.1,141.65,141.64,4.18880731]
[1768510989188,7.05935419,141.66,141.64,6.20443338]
[1768510989411,7.05868236,141.67,141.65,6.20443338]
[1768510989910,8.14375781,141.67,141.61,2.01562607]
[1768510990094,8.14375781,141.67,141.63,6.20443338]
[1768510991411,1.08730561,141.66,141.63,6.20443338]
[1768510991616,25.79263157,141.67,141.63,6.20443338]
[1768510992518,7.05868236,141.67,141.64,6.20443338]
[1768510993407,7.05868236,141.67,141.65,4.18880731]
[1768510994212,7.05868236,141.67,141.64,6.20443338]
[1768510995830,8.15029664,141.67,141.63,6.20443338]
[1768510996007,8.15029664,141.67,141.64,4.18880731]
[1768510996321,7.05868236,141.67,141.64,6.17443339]
[1768510996821,7.05868236,141.67,141.65,4.18880731]
[1768510997023,7.05868236,141.67,141.64,1.98562608]
[1768510997221,26.56530853,141.68,141.65,4.18880731]
[1768510997395,26.56530853,141.68,141.61,4.18880731]
[1768510997602,26.56530853,141.68,141.6,24.71680986]
[1768510997603,26.56530853,141.68,141.64,4.18880731]
[1768510997919,1.12369508,141.66,141.62,4.18880731]
[1768510998322,1.12369508,141.66,141.62,6.20443338]
[1768510999125,8.18437166,141.65,141.59,2.01562607]
[1768510999307,8.18437166,141.65,141.62,4.18880731]
[1768510999508,8.18437166,141.65,141.61,2.01562607]
[1768510999720,8.18437166,141.65,141.62,4.18880731]
[1768511000299,8.18437166,141.65,141.61,6.20443338]
[1768511001622,8.18437166,141.65,141.61,2.01562607]
[1768511001826,8.18437166,141.65,141.61,6.20443338]
[1768511003120,8.18437166,141.65,141.62,2.04322912]
[1768511003450,7.05934222,141.66,141.63,6.23203643]
[1768511003726,7.05934222,141.66,141.63,2.04322912]
[1768511004342,1.13149566,141.66,141.61,2.04322912]
[1768511004528,1.13149566,141.63,141.6,2.04322912]
[1768511005422,5.32030297,141.63,141.58,6.23203643]
[1768511005637,5.32030297,141.63,141.59,1.9483392]
[1768511006430,7.06114955,141.62,141.59,1.9483392]
[1768511008249,7.06114955,141.62,141.58,1.9483392]
[1768511008250,25.84912882,141.62,141.58,1.9483392]
[1768511008404,7.06214689,141.6,141.58,1.9483392]
[1768511010534,5.32651262,141.6,141.56,1.9483392]
[1768511012528,7.06264566,141.59,141.56,1.9483392]
[1768511013812,5.32902397,141.57,141.53,1.9483392]
[1768511014137,4.18880731,141.56,141.53,1.9483392]
[1768511014522,11.2532236,141.56,141.53,1.9483392]
[1768511014708,6.25800435,141.55,141.49,11.25610416]
[1768511014908,4.18880731,141.54,141.49,11.25610416]
[1768511015109,4.18880731,141.54,141.5,7.0670749]
[1768511015311,6.25800435,141.55,141.5,7.0670749]
[1768511015510,24.72477232,141.56,141.51,7.06644774]
[1768511015511,9.13361333,141.56,141.51,7.06644774]
[1768511015715,13.32242064,141.56,141.51,11.25525505]
[1768511016305,13.32242064,141.56,141.51,7.06644774]
[1768511016724,13.32242064,141.56,141.52,1.9483392]
[1768511019316,11.81629755,141.56,141.52,1.9483392]
[1768511020333,9.74734151,141.55,141.52,1.9483392]
[1768511021530,7.06419329,141.56,141.53,1.9483392]
[1768511022043,9.74687751,141.56,141.53,1.9483392]
[1768511022632,9.74642207,141.57,141.53,7.06545715]
[1768511022831,9.74642207,141.57,141.54,1.9483392]
[1768511023142,7.06373785,141.57,141.54,1.9483392]
[1768511024339,4.75188126,141.56,141.51,4.63102342]
[1768511024650,9.1338385,141.55,141.51,1.9483392]
[1768511024841,2.06919704,141.54,141.5,1.9483392]
[1768511025030,2.00919703,141.54,141.5,1.9483392]
[1768511025231,4.69188125,141.54,141.5,1.9483392]
[1768511026444,27.40892935,141.55,141.51,1.9483392]
[1768511027157,29.47812639,141.55,141.51,1.9483392]
[1768511027831,9.13464069,141.54,141.51,1.9483392]
[1768511028749,9.13464069,141.54,141.5,1.9483392]
[1768511029342,2.06919704,141.53,141.5,1.9483392]
[1768511029849,9.13517111,141.53,141.5,1.9483392]
[1768511030159,7.06597407,141.53,141.5,1.9483392]
[1768511031361,9.07107822,141.53,141.49,4.73584928]
[1768511032853,9.07107822,141.53,141.5,2.05316506]
[1768511034740,2.00510415,141.52,141.49,4.73584928]
[1768511034941,9.07107822,141.53,141.49,4.73584928]
[1768511036443,26.7351777,141.53,141.49,4.73584928]
[1768511037354,7.06597407,141.53,141.51,4.73584928]
[1768511038731,7.06597407,141.53,141.51,2.05316506]
[1768511040347,7.06527671,141.54,141.52,2.05316506]
[1768511041366,2.00510415,141.56,141.53,2.05316506]
[1768511041530,19.66249442,141.59,141.55,2.05316506]
[1768511041733,7.06314451,141.58,141.55,2.05316506]
[1768511041953,9.06824866,141.58,141.55,2.05316506]
[1768511042640,9.06824866,141.58,141.54,4.73584928]
[1768511044759,9.06824866,141.58,141.55,2.05316506]
[1768511046957,2.00510415,141.57,141.54,2.68268422]
[1768511047144,2.00510415,141.57,141.53,4.73584928]
[1768511047347,2.00510415,141.57,141.54,2.05316506]
[1768511047552,2.00510415,141.57,141.54,4.73584928]
[1768511047951,9.06824866,141.58,141.56,2.68268422]
[1768511048160,9.06824866,141.58,141.55,4.73584928]
[1768511048878,9.06824866,141.58,141.55,2.05316506]
[1768511049175,9.06824866,141.58,141.54,4.73584928]
[1768511049949,2.00510415,141.57,141.54,2.68268422]
[1768511050752,2.00510415,141.57,141.54,4.73584928]
[1768511051573,7.06378533,141.57,141.54,4.73584928]
[1768511052261,2.00510415,141.58,141.56,2.05316506]
[1768511052262,7.06337931,141.58,141.56,2.05316506]
[1768511052459,7.06337931,141.58,141.56,4.73584928]
[1768511053158,2.00510415,141.59,141.56,4.73584928]
[1768511053363,7.06221043,141.6,141.57,4.73584928]
[1768511053568,7.06221043,141.6,141.57,2.05316506]
[1768511053801,7.06221043,141.6,141.57,4.73584928]
[1768511054270,7.06221043,141.6,141.57,4.70584931]
[1768511054459,9.06731458,141.6,141.57,3.70585021]
[1768511055264,9.06693248,141.61,141.58,2.68268422]
[1768511055866,2.00510415,141.6,141.54,20.34553571]
[1768511056077,2.00510415,141.6,141.56,2.68268422]
[1768511056441,2.00510415,141.6,141.57,2.05316506]
[1768511057549,2.00510415,141.6,141.56,4.73584928]
[1768511057757,9.06774981,141.59,141.56,2.68268422]
[1768511058249,9.06774981,141.59,141.55,2.05316506]
[1768511058452,2.00510415,141.58,141.55,2.05316506]
[1768511059976,9.06831534,141.58,141.55,2.05316506]
[1768511060675,7.06321119,141.58,141.56,2.05316506]
[1768511062775,1.90357951,141.58,141.55,4.7365792]
[1768511063073,1.90357951,141.58,141.55,2.05389498]
[1768511063682,1.90357951,141.58,141.54,2.05389498]
[1768511063980,1.90357951,141.57,141.53,2.05389498]
[1768511065276,7.06414241,141.56,141.53,2.05389498]
[1768511066876,7.06414241,141.56,141.53,4.7365792]
[1768511067383,2.01102778,141.56,141.53,4.7365792]
[1768511067679,7.06364342,141.57,141.54,4.7729062]
[1768511071280,2.01102778,141.57,141.54,4.7729062]
[1768511071578,2.01102778,141.57,141.54,2.09022198]
[1768511073181,26.73248835,141.58,141.54,2.09022198]
[1768511074777,2.01102778,141.57,141.53,2.09022198]
[1768511074974,2.01102778,141.56,141.53,2.09022198]
[1768511077566,9.07559035,141.56,141.53,2.09022198]
[1768511080362,1.91406908,141.53,141.49,2.0462238]
[1768511080685,1.91406908,141.52,141.48,2.0462238]
[1768511081585,6.10531519,141.51,141.47,2.0462238]
[1768511081776,1.91406908,141.5,141.47,2.0462238]
[1768511082670,8.98131533,141.5,141.47,2.0462238]
[1768511083979,8.98086571,141.51,141.47,6.23746991]
[1768511084175,7.06679663,141.51,141.48,6.23746991]
[1768511085681,7.06679663,141.51,141.47,13.306106]
[1768511085682,1.91406908,141.51,141.47,13.306106]
[1768511085864,1.91406908,141.51,141.47,6.23746991]
[1768511087669,8.98103147,141.51,141.48,2.0462238]
[1768511090696,7.06624652,141.52,141.49,2.0462238]
[1768511090891,7.06624652,141.52,141.5,2.09460026]
[1768511091396,9.08967165,141.52,141.49,2.09460026]
[1768511092580,7.06624652,141.52,141.49,2.09460026]
[1768511092897,7.06563979,141.53,141.5,2.09460026]
[1768511093484,19.68675839,141.54,141.51,2.09460026]
[1768511093485,7.06532778,141.54,141.51,2.09460026]
[1768511094003,7.06532778,141.54,141.51,6.28584637]
[1768511094295,7.06532778,141.54,141.52,2.09460026]
[1768511094702,9.0877493,141.56,141.52,6.28584637]
[1768511094894,9.0877493,141.56,141.53,2.09460026]
[1768511095071,2.02342513,141.55,141.52,6.28584637]
[1768511096804,2.02342513,141.56,141.52,6.28584637]
[1768511097278,2.02342513,141.57,141.53,2.09460026]
[1768511097474,2.02342513,141.56,141.52,2.09460026]
[1768511097699,2.02342513,141.55,141.51,2.09460026]
[1768511098597,4.19124611,141.56,141.53,2.09460026]
[1768511098598,2.02342513,141.56,141.53,2.09460026]
[1768511098901,9.08806425,141.56,141.53,2.09460026]
[1768511099102,7.06463912,141.56,141.53,6.28584637]
[1768511099607,9.08726139,141.57,141.54,2.09460026]
[1768511100696,2.02342513,141.58,141.55,2.09460026]
[1768511101384,2.02342513,141.58,141.54,11.25624231]
[1768511101385,7.06264566,141.59,141.57,6.28584637]
[1768511101696,7.06264566,141.59,141.57,6.2558464]
[1768511101899,7.06264566,141.59,141.57,2.06460029]
[1768511102202,7.06264566,141.59,141.56,4.19124611]
[1768511103528,7.06264566,141.59,141.56,6.28584637]
[1768511103692,2.02342513,141.57,141.55,2.09460026]
[1768511103900,2.02342513,141.56,141.51,7.06641054]
[1768511104206,2.02342513,141.56,141.52,4.19124611]
[1768511105515,7.06464146,141.55,141.52,4.19124611]
[1768511105910,7.06464146,141.55,141.51,6.28584637]
[1768511106098,7.06464146,141.55,141.52,2.09460026]
[1768511106507,2.02342513,141.56,141.52,2.09460026]
[1768511106508,9.08777139,141.56,141.52,6.28584637]
[1768511107116,9.08777139,141.56,141.52,2.09460026]
[1768511107310,9.08777139,141.56,141.52,6.28584637]
[1768511107629,9.08777139,141.56,141.52,2.09460026]
[1768511107802,9.08777139,141.56,141.52,6.28584637]
[1768511108004,9.08777139,141.56,141.52,2.09460026]
[1768511108219,9.08777139,141.56,141.52,6.28584637]
[1768511109525,2.02342513,141.55,141.52,6.28584637]
[1768511110727,21.85046146,141.57,141.54,6.28584637]
[1768511110728,7.06375185,141.57,141.54,6.28584637]
[1768511110929,9.08676886,141.58,141.54,6.28584637]
[1768511112222,7.06334373,141.58,141.55,2.09460026]
[1768511112413,7.06334373,141.58,141.55,6.28584637]
[1768511114529,2.02342513,141.62,141.57,6.28584637]
[1768511114904,2.02342513,141.61,141.58,4.19124611]
[1768511115113,2.02342513,141.61,141.58,6.28584637]
[1768511115838,2.02342513,141.6,141.56,9.15827129]
[1768511116126,2.02342513,141.6,141.56,7.06367103]
[1768511116332,2.02342513,141.6,141.56,11.25491714]
[1768511117605,2.02342513,141.59,141.54,6.28584637]
[1768511117809,2.02342513,141.59,141.54,13.35083747]
[1768511118029,2.02342513,141.59,141.55,2.09460026]
[1768511119520,9.08615456,141.59,141.55,13.35045335]
[1768511121034,9.08615456,141.59,141.55,4.19124611]
[1768511121035,1.92052734,141.58,141.55,4.19124611]
[1768511122136,8.98367732,141.58,141.55,4.19124611]
[1768511123634,8.98367732,141.58,141.54,13.20844605]
[1768511125034,8.98367732,141.58,141.54,9.01719994]
[1768511125237,1.92052734,141.57,141.54,13.20844605]
[1768511126234,1.92052734,141.57,141.54,1.95218231]
[1768511126411,1.92052734,141.57,141.53,6.09232225]
[1768511126613,1.92052734,141.57,141.53,1.90107614]
[1768511126812,1.92052734,141.57,141.52,6.09232225]
[1768511127134,9.0788822,141.56,141.52,6.09232225]
[1768511127630,2.01473979,141.55,141.52,4.19124611]
[1768511127827,2.01473979,141.55,141.52,6.09232225]
[1768511130022,9.07940233,141.55,141.52,1.90107614]
[1768511130330,7.0643323,141.56,141.54,1.90107614]
[1768511130750,7.06388009,141.57,141.55,1.90107614]
[1768511131151,7.06388009,141.57,141.55,6.09232225]
[1768511131640,7.06388009,141.57,141.55,1.90107614]
[1768511132940,2.01473979,141.6,141.56,1.90107614]
[1768511133119,2.01473979,141.6,141.56,6.09232225]
[1768511134241,9.07736523,141.6,141.56,6.09232225]
[1768511134541,2.01473979,141.59,141.56,6.09232225]
[1768511135038,2.01473979,141.59,141.56,1.90107614]
[1768511135826,2.01473979,141.59,141.54,13.15725015]
[1768511136039,2.01473979,141.59,141.52,1.90107614]
[1768511136363,9.07853659,141.57,141.53,1.90107614]
[1768511136545,2.01473979,141.56,141.52,8.96683122]
[1768511136746,2.01473979,141.56,141.53,1.90107614]
[1768511137540,2.01473979,141.56,141.52,11.25700119]
[1768511137541,2.01473979,141.56,141.52,8.96683122]
[1768511137849,2.01473979,141.56,141.52,13.15807733]
[1768511138053,9.07853659,141.57,141.53,1.90107614]
[1768511138646,9.07853659,141.57,141.53,6.09232225]
[1768511138852,9.07853659,141.57,141.53,1.90107614]
[1768511139021,2.01473979,141.56,141.52,13.15807733]
[1768511139751,2.01473979,141.56,141.51,13.15881188]
[1768511140050,2.01473979,141.56,141.52,1.90107614]
[1768511141034,9.07910562,141.56,141.52,6.09232225]
[1768511141342,9.07910562,141.56,141.52,4.58350757]
[1768511141531,7.06436583,141.56,141.53,1.90107614]
[1768511141854,9.07805103,141.58,141.54,4.58350757]
[1768511142054,2.01473979,141.56,141.52,7.06609435]
[1768511142230,2.01473979,141.56,141.51,11.64997731]
[1768511143163,9.07911548,141.56,141.51,11.64997731]
[1768511144051,9.07911548,141.56,141.52,1.90107614]
[1768511145057,2.01473979,141.55,141.52,1.90107614]
[1768511147347,2.01473979,141.55,141.52,7.06605613]
[1768511147527,2.01473979,141.55,141.52,8.96713227]
[1768511149079,2.01473979,141.55,141.52,11.6495637]
[1768511150850,2.01473979,141.55,141.52,8.96713227]
[1768511151053,2.01473979,141.55,141.52,11.6495637]
[1768511151384,9.07944659,141.55,141.52,4.58350757]
[1768511151562,2.01473979,141.55,141.52,4.58350757]
[1768511151870,2.01473979,141.55,141.52,2.0003968]
[1768511154145,2.01473979,141.55,141.52,9.0665058]
[1768511154462,2.01473979,141.55,141.52,11.74893723]
[1768511156376,1.89839156,141.56,141.53,2.0003968]
[1768511157666,1.89839156,141.59,141.56,2.0003968]
[1768511158661,8.96112302,141.59,141.56,2.0003968]
[1768511159242,1.89839156,141.58,141.54,7.064977]
[1768511159447,1.89839156,141.54,141.51,2.0003968]
[1768511159679,1.89839156,141.55,141.51,9.06680471]
[1768511160345,1.89839156,141.55,141.51,11.74923614]
[1768511160644,1.89839156,141.55,141.51,9.06680471]
[1768511167281,1.89839156,141.55,141.52,9.06633524]
[1768511167455,8.96234748,141.57,141.53,2.0003968]
[1768511167654,1.89839156,141.56,141.53,2.0003968]
[1768511168064,1.89839156,141.56,141.53,4.68282823]
[1768511170300,1.89839156,141.56,141.53,11.74843867]
[1768511170478,1.89839156,141.6,141.56,2.0003968]
[1768511170680,1.89839156,141.6,141.56,4.68282823]
[1768511170978,1.89839156,141.6,141.55,4.68282823]
[1768511171507,1.89839156,141.6,141.55,11.74733172]
[1768511171885,1.89839156,141.59,141.54,7.06491191]
[1768511172083,1.89839156,141.58,141.53,11.74815591]
[1768511172409,1.89839156,141.58,141.53,9.06572448]
[1768511172585,1.89839156,141.58,141.53,11.74815591]
[1768511173575,1.89839156,141.57,141.53,11.74815591]
[1768511175103,1.89839156,141.57,141.54,11.74784701]
[1768511175416,8.96120621,141.59,141.55,2.0003968]
[1768511175591,1.89839156,141.58,141.55,4.68282823]
[1768511176616,1.89839156,141.58,141.55,2.0003968]
[1768511177183,1.89839156,141.58,141.55,9.06493708]
[1768511178799,1.89839156,141.58,141.55,7.06454028]
[1768511178985,1.89839156,141.62,141.57,2.0003968]
[1768511179189,1.89839156,141.61,141.57,2.0003968]
[1768511179380,1.89839156,141.61,141.56,2.68243143]
[1768511179381,1.89839156,141.6,141.55,11.74736851]
[1768511180607,1.89839156,141.59,141.55,11.74736851]
[1768511181706,2.00128925,141.61,141.56,4.62669064]
[1768511182005,2.00128925,141.61,141.56,2.68243143]
[1768511182203,2.00128925,141.6,141.56,4.62669064]
[1768511183210,2.00128925,141.61,141.57,4.62669064]
[1768511183400,2.00128925,141.61,141.58,1.94425921]
[1768511183604,2.00128925,141.63,141.57,1.94425921]
[1768511183788,2.00128925,141.62,141.57,1.94425921]
[1768511183996,2.00128925,141.62,141.57,4.62669064]
[1768511185521,2.02132287,141.61,141.57,11.69000264]
[1768511186515,2.02132287,141.6,141.57,1.94425921]
[1768511186697,2.02132287,141.6,141.56,9.1129819]
[1768511186903,2.02132287,141.6,141.56,11.79541333]
[1768511187403,2.02132287,141.6,141.56,9.1129819]
[1768511188931,2.02132287,141.6,141.56,11.79541333]
[1768511189599,9.08350032,141.6,141.56,11.79541333]
[1768511192219,2.02132287,141.59,141.54,4.73149557]
[1768511192390,2.02132287,141.59,141.54,11.7963462]
[1768511193225,2.02132287,141.59,141.55,2.04906414]
[1768511194293,9.08443593,141.59,141.54,9.74728206]
[1768511194497,2.02132287,141.58,141.53,11.79703146]
[1768511195423,2.02132287,141.58,141.53,9.11460003]
[1768511195595,2.02132287,141.57,141.53,11.79703146]
[1768511196437,4.7037543,141.57,141.52,12.91500935]
[1768511196622,2.02132287,141.56,141.51,9.74895595]
[1768511196916,2.02132287,141.56,141.51,11.79802009]
[1768511197296,2.02132287,141.55,141.51,9.11558866]
[1768511197696,9.0860582,141.55,141.51,9.11558866]
[1768511198418,2.02132287,141.55,141.51,9.11558866]
[1768511198592,2.02132287,141.55,141.51,11.79802009]
[1768511199322,2.02132287,141.54,141.5,9.11610044]
[1768511199896,9.0864827,141.54,141.5,9.11610044]
[1768511200628,2.02132287,141.54,141.5,11.79853187]
[1768511201213,2.02132287,141.54,141.52,2.68243143]
[1768511201618,2.02132287,141.54,141.51,2.04906414]
[1768511201829,2.02132287,141.54,141.52,2.68243143]
[1768511202625,2.02132287,141.57,141.53,4.73149557]
[1768511203205,2.02132287,141.57,141.53,2.68243143]
[1768511203404,2.02132287,141.57,141.53,4.19093798]
[1768511203812,2.02132287,141.56,141.53,4.19093798]
[1768511204106,2.02132287,141.56,141.52,13.30580781]
[1768511204313,2.02132287,141.56,141.53,11.25657308]
[1768511204520,2.02132287,141.56,141.53,7.0656351]
[1768511204827,2.02132287,141.57,141.53,13.30563722]
[1768511205510,6.21226085,141.57,141.52,13.30601978]
[1768511205724,2.02132287,141.56,141.52,13.30601978]
[1768511207718,2.02132287,141.56,141.53,4.19093798]
[1768511208227,2.02132287,141.56,141.53,2.04906414]
[1768511208414,2.02132287,141.56,141.53,6.24000212]
[1768511208605,2.02132287,141.56,141.53,11.2565769]
[1768511210225,2.02132287,141.56,141.53,7.06563892]
[1768511211441,9.08547343,141.56,141.52,6.24000212]
[1768511211624,1.96132288,141.56,141.52,6.24000212]
[1768511213525,1.96132288,141.56,141.52,13.30574137]
[1768511213716,1.96132288,141.56,141.53,4.19093798]
[1768511214609,1.96132288,141.56,141.52,13.30574137]
[1768511217232,1.90132289,141.56,141.52,13.30574137]
[1768511221530,1.90132289,141.56,141.53,2.03695799]
[1768511221927,8.96574523,141.56,141.53,2.03695799]
[1768511222132,9.07658954,141.56,141.52,13.29363522]
[1768511223629,2.0121672,141.55,141.5,5.83695799]
[1768511223833,1.95216721,141.55,141.51,4.19093798]
[1768511224020,1.95216721,141.55,141.51,6.22789597]
[1768511224718,1.95216721,141.55,141.5,12.90383368]
[1768511225020,4.19093798,141.53,141.48,2.03695799]
[1768511225334,4.19093798,141.53,141.47,13.29626113]
[1768511225739,2.0121672,141.51,141.47,13.29626113]
[1768511225924,1.95216721,141.51,141.48,2.03695799]
[1768511226133,1.89216722,141.51,141.48,6.22789597]
[1768511227318,1.89216722,141.51,141.48,4.19093798]
[1768511227527,1.89216722,141.51,141.47,13.29626113]
[1768511228943,2.0121672,141.5,141.47,13.29626113]
[1768511229237,4.19093798,141.49,141.45,2.23695799]
[1768511229436,4.19093798,141.48,141.45,0.2]
[1768511229738,7.06674047,141.51,141.39,0.2]
[1768511229739,4.19093798,141.47,141.43,2.03695799]
[1768511229916,28.92427445,141.51,141.46,2.03695799]
[1768511230532,24.73333647,141.51,141.46,2.03695799]
[1768511230742,28.92427445,141.51,141.46,2.03695799]
[1768511231037,9.07980448,141.49,141.46,2.03695799]
[1768511232241,2.0121672,141.5,141.47,2.03695799]
[1768511232441,2.0121672,141.5,141.47,6.22789597]
[1768511232623,2.0121672,141.5,141.47,4.19093798]
[1768511233522,2.0121672,141.5,141.46,6.22789597]
[1768511234545,2.0121672,141.48,141.45,2.03695799]
[1768511236133,2.0121672,141.48,141.45,6.22789597]
[1768511237346,2.0121672,141.47,141.44,2.03695799]
[1768511237570,2.0121672,141.47,141.43,6.22789597]
[1768511238526,2.0121672,141.47,141.4,2.03695799]
[1768511238727,1.64543841,141.45,141.41,6.22789597]
[1768511239226,8.71523393,141.45,141.41,6.22789597]
[1768511240447,8.71523393,141.45,141.41,2.03695799]
[1768511240642,8.71523393,141.45,141.41,6.22789597]
[1768511240942,8.71523393,141.45,141.41,2.03695799]
[1768511241125,1.64275563,141.44,141.41,2.03695799]
[1768511241318,1.64275563,141.44,141.39,7.27247119]
[1768511241319,1.64275563,141.43,141.4,2.05931732]
[1768511241550,5.83281981,141.44,141.4,2.05931732]
[1768511242047,8.71167735,141.45,141.41,2.05931732]
[1768511243943,1.64016423,141.44,141.4,2.05931732]
[1768511245036,8.71049874,141.44,141.4,2.05931732]
[1768511245350,8.71049874,141.44,141.41,2.05931732]
[1768511247422,8.71049874,141.44,141.39,0.2]
[1768511247423,1.63426189,141.43,141.39,0.2]
[1768511247748,1.63426189,141.43,141.39,2.18468348]
[1768511249445,8.70522075,141.43,141.39,2.18468348]
[1768511249835,12.89615873,141.43,141.39,2.18468348]
[1768511250729,5.82181869,141.42,141.39,0.2]
[1768511250942,1.63088071,141.42,141.39,0.2]
[1768511251537,8.70227124,141.42,141.39,0.2]
[1768511251939,7.07085673,141.43,141.4,1.98468348]
[1768511252441,8.69954755,141.43,141.4,1.98468348]
[1768511253633,8.69954755,141.43,141.39,13.44818238]
[1768511258150,1.62343243,141.45,141.41,1.98468348]
[1768511258758,1.62241671,141.41,141.39,0.2]
[1768511258935,4.19093798,141.41,141.39,0.2]
[1768511259130,5.81335469,141.42,141.39,0.2]
[1768511259339,5.81235064,141.43,141.39,2.18468348]
[1768511260163,8.69233963,141.43,141.4,1.98468348]
[1768511260452,7.07017174,141.44,141.4,1.98468348]
[1768511260644,12.88103663,141.45,141.41,1.98468348]
[1768511261041,8.69009865,141.45,141.41,1.98468348]
[1768511262240,8.69009865,141.45,141.41,6.17562146]
[1768511263344,8.69009865,141.45,141.41,4.67133109]
[1768511264137,8.69009865,141.45,141.42,1.98468348]
[1768511264862,8.69009865,141.45,141.41,1.98468348]
[1768511265640,11.37674626,141.45,141.41,1.98468348]
[1768511266755,8.69009865,141.45,141.41,1.98468348]
[1768511266958,11.37674626,141.45,141.41,1.98468348]
[1768511267653,4.3004321,141.44,141.41,1.98468348]
[1768511267850,8.68393493,141.44,141.41,1.98468348]
[1768511275771,8.67585177,141.45,141.41,1.98468348]
[1768511276560,1.60518914,141.46,141.42,1.95850101]
[1768511276881,8.67396047,141.47,141.43,1.95850101]
[1768511277775,11.36060808,141.47,141.43,1.95850101]
[1768511281285,11.36060808,141.47,141.43,9.02912038]
[1768511281584,8.67396047,141.47,141.43,9.02912038]
[1768511282980,8.67396047,141.47,141.44,1.95850101]
[1768511284398,11.35398884,141.48,141.44,1.95850101]
[1768511284689,1.59899314,141.47,141.44,1.95850101]
[1768511285275,8.66684545,141.49,141.45,1.95850101]
[1768511285586,8.66561726,141.5,141.46,4.64514862]
[1768511285796,8.66561726,141.5,141.47,1.95850101]
[1768511285969,8.66561726,141.5,141.47,1.92850104]
[1768511286679,8.66561726,141.5,141.47,1.89850111]
[1768511289682,11.35226487,141.5,141.47,1.89850111]
[1768511290190,8.66561726,141.5,141.47,1.89850111]
[1768511291193,11.35226487,141.5,141.47,1.89850111]
[1768511292370,9.0073769,141.49,141.44,9.75659101]
[1768511292568,1.93931192,141.45,141.41,7.07143329]
[1768511293273,1.93931192,141.45,141.4,9.75860931]
[1768511293596,1.93931192,141.45,141.41,7.07150809]
[1768511294383,1.93931192,141.45,141.42,1.95850101]
[1768511295496,9.00912444,141.45,141.42,1.95850101]
[1768511295870,1.93931192,141.44,141.41,1.95850101]
[1768511296287,2.68664761,141.45,141.41,1.95850101]
[1768511296477,4.62595953,141.45,141.41,1.95850101]
[1768511296794,1.93931192,141.45,141.41,1.95850101]
[1768511297088,9.00938184,141.45,141.41,1.95850101]
[1768511297284,7.07006992,141.45,141.41,1.95850101]
[1768511297892,7.07006992,141.45,141.42,1.95850101]
[1768511298605,9.00938184,141.45,141.42,1.95850101]
[1768511301291,1.88931356,141.47,141.43,1.95892214]
[1768511302177,1.88931356,141.46,141.43,1.95892214]